fUSD/lending_fUSD_20260509
["ID","MTS","AMOUNT","RATE_DAILY","PERIOD"]
[421917275,1778332269000,-483.58541473,0.00037572,2]
[421917267,1778332269000,-300.0,0.00037572,2]
[421917242,1778332269000,-300.0,0.00037572,2]
[421917256,1778332269000,-853.1450221,0.00037572,2]
[421917239,1778332269000,-381.52909648,0.00037572,2]
[421917212,1778332269000,-725.16299599,0.00037572,2]
[421917238,1778332269000,-503.96482745,0.00037572,2]
[421917269,1778332269000,-463.36822182,0.00037572,2]
[421917220,1778332269000,-1794.44722741,0.00037572,2]
[421917211,1778332269000,-892.47111794,0.00037572,2]
[421917222,1778332269000,-526.23843354,0.00037572,2]
[421917221,1778332269000,-343.62395792,0.00037572,2]
[421917213,1778332269000,-399.46100559,0.00037572,2]
[421917215,1778332269000,-300.0,0.00037572,2]
[421917218,1778332269000,-853.1450221,0.00037572,2]
[421917214,1778332269000,-301.48155124,0.00037572,2]
[421917217,1778332269000,-300.0,0.00037572,2]
[421917216,1778332269000,-300.20081793,0.00037572,2]
[421917219,1778332269000,-300.0,0.00037572,2]
[421917223,1778332269000,-1145.98254531,0.00037572,2]
[421917246,1778332269000,-1065.60457524,0.00037572,2]
[421917226,1778332269000,-300.0,0.00037572,2]
[421917224,1778332269000,-309.26886467,0.00037572,2]
[421917235,1778332269000,-300.0,0.00037572,2]
[421917230,1778332269000,-451.4433371,0.00037572,2]
[421917231,1778332269000,-300.0,0.00037572,2]
[421917233,1778332269000,-309.46065506,0.00037572,2]
[421917227,1778332269000,-310.51454575,0.00037572,2]
[421917232,1778332269000,-483.58541473,0.00037572,2]
[421917229,1778332269000,-576.5741924,0.00037572,2]
[421917228,1778332269000,-463.36822182,0.00037572,2]
[421917234,1778332269000,-300.0,0.00037572,2]
[421917237,1778332269000,-1096.86435611,0.00037572,2]
[421917236,1778332269000,-300.0,0.00037572,2]
[421917241,1778332269000,-300.0,0.00037572,2]
[421917225,1778332269000,-863.36739388,0.00037572,2]
[421917272,1778332269000,-451.4433371,0.00037572,2]
[421917277,1778332269000,-300.0,0.00037572,2]
[421917271,1778332269000,-300.0,0.00037572,2]
[421917304,1778332269000,-474.98520692,0.00037572,2]
[421917302,1778332269000,-300.0,0.00037572,2]
[421917309,1778332269000,-368.09857022,0.00037572,2]
[421917311,1778332269000,-309.26886467,0.00037572,2]
[421917310,1778332269000,-1145.98254531,0.00037572,2]
[421917307,1778332269000,-343.62395792,0.00037572,2]
[421917312,1778332269000,-863.36739387,0.00037572,2]
[421917321,1778332269000,-300.0,0.00037572,2]
[421917318,1778332269000,-300.0,0.00037572,2]
[421917315,1778332269000,-300.0,0.00037572,2]
[421917316,1778332269000,-310.51454575,0.00037572,2]
[421917317,1778332269000,-300.0,0.00037572,2]
[421917314,1778332269000,-300.0,0.00037572,2]
[421917313,1778332269000,-300.0,0.00037572,2]
[421917320,1778332269000,-576.5741924,0.00037572,2]
[421917325,1778332269000,-300.0,0.00037572,2]
[421917322,1778332269000,-451.4433371,0.00037572,2]
[421917319,1778332269000,-463.36822182,0.00037572,2]
[421917323,1778332269000,-300.0,0.00037572,2]
[421917327,1778332269000,-309.46065506,0.00037572,2]
[421917328,1778332269000,-543.79786294,0.00037572,2]
[421917326,1778332269000,-483.58541473,0.00037572,2]
[421917329,1778332269000,-300.0,0.00037572,2]
[421917334,1778332269000,-300.0,0.00037572,2]
[421917332,1778332269000,-301.78414784,0.00037572,2]
[421917335,1778332269000,-490.61489497,0.00037572,2]
[421917333,1778332269000,-300.0,0.00037572,2]
[421917331,1778332269000,-300.0,0.00037572,2]
[421917324,1778332269000,-300.0,0.00037572,2]
[421917305,1778332269000,-853.1450221,0.00037572,2]
[421917330,1778332269000,-300.0,0.00037572,2]
[421917308,1778332269000,-526.23843354,0.00037572,2]
[421917306,1778332269000,-1794.44722741,0.00037572,2]
[421917270,1778332269000,-576.5741924,0.00037572,2]
[421917279,1778332269000,-561.76298915,0.00037572,2]
[421917281,1778332269000,-1096.86435611,0.00037572,2]
[421917280,1778332269000,-300.0,0.00037572,2]
[421917282,1778332269000,-301.78414784,0.00037572,2]
[421917283,1778332269000,-300.0,0.00037572,2]
[421917336,1778332269000,-300.0,0.00037572,2]
[421917278,1778332269000,-300.0,0.00037572,2]
[421917284,1778332269000,-381.52909648,0.00037572,2]
[421917285,1778332269000,-492.08061472,0.00037572,2]
[421917286,1778332269000,-300.0,0.00037572,2]
[421917276,1778332269000,-309.46065506,0.00037572,2]
[421917287,1778332269000,-511.12636223,0.00037572,2]
[421917273,1778332269000,-300.0,0.00037572,2]
[421917288,1778332269000,-300.0,0.00037572,2]
[421917299,1778332269000,-300.20081793,0.00037572,2]
[421917295,1778332269000,-892.47111794,0.00037572,2]
[421917296,1778332269000,-399.46100559,0.00037572,2]
[421917297,1778332269000,-725.162996,0.00037572,2]
[421917293,1778332269000,-527.09470176,0.00037572,2]
[421917294,1778332269000,-1087.31367679,0.00037572,2]
[421917298,1778332269000,-301.48155124,0.00037572,2]
[421917303,1778332269000,-300.0,0.00037572,2]
[421917300,1778332269000,-300.0,0.00037572,2]
[421917292,1778332269000,-300.0,0.00037572,2]
[421917290,1778332269000,-370.2551929,0.00037572,2]
[421917289,1778332269000,-603.8329142,0.00037572,2]
[421917291,1778332269000,-300.0,0.00037572,2]
[421917301,1778332269000,-300.00000001,0.00037572,2]
[421917367,1778332270000,-300.0,0.00037572,2]
[421917366,1778332270000,-1049.1059626,0.00037572,2]
[421917371,1778332270000,-581.67009203,0.00037572,2]
[421917370,1778332270000,-300.0,0.00037572,2]
[421917374,1778332270000,-576.5741924,0.00037572,2]
[421917373,1778332270000,-300.0,0.00037572,2]
[421917368,1778332270000,-300.89332931,0.00037572,2]
[421917372,1778332270000,-463.36822182,0.00037572,2]
[421917365,1778332270000,-309.26886467,0.00037572,2]
[421917369,1778332270000,-310.51454575,0.00037572,2]
[421917379,1778332270000,-483.58541473,0.00037572,2]
[421917387,1778332270000,-492.08061472,0.00037572,2]
[421917386,1778332270000,-300.0,0.00037572,2]
[421917375,1778332270000,-451.4433371,0.00037572,2]
[421917377,1778332270000,-300.0,0.00037572,2]
[421917364,1778332270000,-1145.98254531,0.00037572,2]
[421917385,1778332270000,-300.00000001,0.00037572,2]
[421917380,1778332270000,-309.46065506,0.00037572,2]
[421917378,1778332270000,-567.46631136,0.00037572,2]
[421917383,1778332270000,-300.0,0.00037572,2]
[421917382,1778332270000,-300.0,0.00037572,2]
[421917384,1778332270000,-568.34712856,0.00037572,2]
[421917376,1778332270000,-300.0,0.00037572,2]
[421917363,1778332270000,-526.23843355,0.00037572,2]
[421917352,1778332270000,-725.162996,0.00037572,2]
[421917353,1778332270000,-301.48155124,0.00037572,2]
[421917381,1778332270000,-300.0,0.00037572,2]
[421917337,1778332270000,-300.0,0.00037572,2]
[421917346,1778332270000,-300.0,0.00037572,2]
[421917343,1778332270000,-300.0,0.00037572,2]
[421917345,1778332270000,-300.0,0.00037572,2]
[421917347,1778332270000,-477.29947606,0.00037572,2]
[421917340,1778332270000,-363.42720589,0.00037572,2]
[421917338,1778332270000,-577.10639094,0.00037572,2]
[421917342,1778332270000,-300.0,0.00037572,2]
[421917339,1778332270000,-492.08061472,0.00037572,2]
[421917344,1778332270000,-603.8329142,0.00037572,2]
[421917341,1778332270000,-328.88398322,0.00037572,2]
[421917350,1778332270000,-892.47111794,0.00037572,2]
[421917351,1778332270000,-399.46100559,0.00037572,2]
[421917362,1778332270000,-343.62395792,0.00037572,2]
[421917361,1778332270000,-1794.44722741,0.00037572,2]
[421917360,1778332270000,-300.0,0.00037572,2]
[421917349,1778332270000,-1065.13491716,0.00037572,2]
[421917355,1778332270000,-300.0,0.00037572,2]
[421917358,1778332270000,-853.1450221,0.00037572,2]
[421917354,1778332270000,-413.60614703,0.00037572,2]
[421917357,1778332270000,-301.79082844,0.00037572,2]
[421917359,1778332270000,-300.0,0.00037572,2]
[421917356,1778332270000,-300.20081793,0.00037572,2]
[421917348,1778332270000,-527.09470177,0.00037572,2]
[421917391,1778332270000,-300.0,0.00037572,2]
[421917390,1778332270000,-603.8329142,0.00037572,2]
[421917417,1778332270000,-309.46065506,0.00037572,2]
[421917419,1778332270000,-300.0,0.00037572,2]
[421917420,1778332270000,-302.6200898,0.00037572,2]
[421917422,1778332270000,-495.02768523,0.00037572,2]
[421917421,1778332270000,-300.0,0.00037572,2]
[421917431,1778332270000,-300.20081793,0.00037572,2]
[421917425,1778332270000,-527.09470177,0.00037572,2]
[421917426,1778332270000,-892.47111794,0.00037572,2]
[421917424,1778332270000,-300.0,0.00037572,2]
[421917423,1778332270000,-603.8329142,0.00037572,2]
[421917428,1778332270000,-725.16299601,0.00037572,2]
[421917429,1778332270000,-301.48155124,0.00037572,2]
[421917430,1778332270000,-300.0,0.00037572,2]
[421917433,1778332270000,-1794.44722741,0.00037572,2]
[421917432,1778332270000,-853.1450221,0.00037572,2]
[421917436,1778332270000,-362.57660227,0.00037572,2]
[421917434,1778332270000,-343.62395792,0.00037572,2]
[421917437,1778332270000,-1145.98254531,0.00037572,2]
[421917435,1778332270000,-701.65124479,0.00037572,2]
[421917439,1778332270000,-312.15011539,0.00037572,2]
[421917438,1778332270000,-309.26886467,0.00037572,2]
[421917440,1778332270000,-463.36822182,0.00037572,2]
[421917388,1778332270000,-372.65,0.00037572,2]
[421917418,1778332270000,-300.0,0.00037572,2]
[421917415,1778332270000,-300.0,0.00037572,2]
[421917427,1778332270000,-399.46100559,0.00037572,2]
[421917414,1778332270000,-300.0,0.00037572,2]
[421917392,1778332270000,-527.09470177,0.00037572,2]
[421917416,1778332270000,-483.58541473,0.00037572,2]
[421917395,1778332270000,-725.162996,0.00037572,2]
[421917399,1778332270000,-302.93907927,0.00037572,2]
[421917396,1778332270000,-301.48155124,0.00037572,2]
[421917394,1778332270000,-399.46100559,0.00037572,2]
[421917389,1778332270000,-300.0,0.00037572,2]
[421917397,1778332270000,-300.0,0.00037572,2]
[421917393,1778332270000,-892.47111794,0.00037572,2]
[421917398,1778332270000,-300.20081793,0.00037572,2]
[421917411,1778332270000,-576.5741924,0.00037572,2]
[421917400,1778332270000,-853.1450221,0.00037572,2]
[421917401,1778332270000,-1794.44722741,0.00037572,2]
[421917406,1778332270000,-309.26886467,0.00037572,2]
[421917404,1778332270000,-526.23843353,0.00037572,2]
[421917409,1778332270000,-463.36822182,0.00037572,2]
[421917402,1778332270000,-374.52400257,0.00037572,2]
[421917413,1778332270000,-300.0,0.00037572,2]
[421917410,1778332270000,-300.0,0.00037572,2]
[421917405,1778332270000,-1145.98254531,0.00037572,2]
[421917412,1778332270000,-451.4433371,0.00037572,2]
[421917407,1778332270000,-310.51454575,0.00037572,2]
[421917408,1778332270000,-300.0,0.00037572,2]
[421917403,1778332270000,-343.62395792,0.00037572,2]
[421917481,1778332271000,-382.35290747,0.00037572,2]
[421917477,1778332271000,-1147.22357329,0.00037572,2]
[421917475,1778332271000,-1794.44722741,0.00037572,2]
[421917483,1778332271000,-300.0,0.00037572,2]
[421917485,1778332271000,-399.46100559,0.00037572,2]
[421917479,1778332271000,-449.96391392,0.00037572,2]
[421917474,1778332271000,-300.20081793,0.00037572,2]
[421917478,1778332271000,-576.5741924,0.00037572,2]
[421917480,1778332271000,-300.0,0.00037572,2]
[421917472,1778332271000,-301.48155124,0.00037572,2]
[421917486,1778332271000,-301.81321693,0.00037572,2]
[421917471,1778332271000,-399.46100559,0.00037572,2]
[421917484,1778332271000,-892.47111794,0.00037572,2]
[421917495,1778332271000,-399.46100559,0.00037572,2]
[421917489,1778332271000,-1793.89169879,0.00037572,2]
[421917487,1778332271000,-300.0,0.00037572,2]
[421917490,1778332271000,-343.62395792,0.00037572,2]
[421917482,1778332271000,-1093.33377153,0.00037572,2]
[421917491,1778332271000,-300.0,0.00037572,2]
[421917493,1778332271000,-1088.30257763,0.00037572,2]
[421917492,1778332271000,-576.5741924,0.00037572,2]
[421917501,1778332271000,-892.47111794,0.00037572,2]
[421917494,1778332271000,-892.47111794,0.00037572,2]
[421917500,1778332271000,-345.25130531,0.00037572,2]
[421917502,1778332271000,-659.86534378,0.00037572,2]
[421917498,1778332271000,-343.62395792,0.00037572,2]
[421917473,1778332271000,-300.0,0.00037572,2]
[421917488,1778332271000,-300.20081793,0.00037572,2]
[421917469,1778332271000,-605.03169898,0.00037572,2]
[421917449,1778332271000,-603.8329142,0.00037572,2]
[421917470,1778332271000,-892.47111794,0.00037572,2]
[421917443,1778332271000,-300.0,0.00037572,2]
[421917442,1778332271000,-451.4433371,0.00037572,2]
[421917441,1778332271000,-576.5741924,0.00037572,2]
[421917454,1778332271000,-301.48155124,0.00037572,2]
[421917445,1778332271000,-483.58541473,0.00037572,2]
[421917456,1778332271000,-300.20081793,0.00037572,2]
[421917446,1778332271000,-309.46065506,0.00037572,2]
[421917447,1778332271000,-300.0,0.00037572,2]
[421917453,1778332271000,-301.90548356,0.00037572,2]
[421917444,1778332271000,-448.27752434,0.00037572,2]
[421917448,1778332271000,-350.10858405,0.00037572,2]
[421917455,1778332271000,-300.0,0.00037572,2]
[421917451,1778332271000,-724.49963936,0.00037572,2]
[421917450,1778332271000,-892.47111794,0.00037572,2]
[421917452,1778332271000,-399.46100559,0.00037572,2]
[421917457,1778332271000,-857.95222998,0.00037572,2]
[421917462,1778332271000,-576.5741924,0.00037572,2]
[421917466,1778332271000,-517.01641853,0.00037572,2]
[421917458,1778332271000,-1794.44722741,0.00037572,2]
[421917459,1778332271000,-343.62395792,0.00037572,2]
[421917464,1778332271000,-300.0,0.00037572,2]
[421917460,1778332271000,-1145.98254531,0.00037572,2]
[421917463,1778332271000,-451.4433371,0.00037572,2]
[421917461,1778332271000,-307.51764801,0.00037572,2]
[421917468,1778332271000,-300.0,0.00037572,2]
[421917465,1778332271000,-643.03217678,0.00037572,2]
[421917467,1778332271000,-300.0,0.00037572,2]
[421917476,1778332271000,-343.62395792,0.00037572,2]
[421917496,1778332271000,-300.0,0.00037572,2]
[421917508,1778332271000,-311.01321918,0.00037572,2]
[421917499,1778332271000,-397.03144639,0.00037572,2]
[421917531,1778332271000,-1093.33377153,0.00037572,2]
[421917538,1778332271000,-451.3512506,0.00037572,2]
[421917535,1778332271000,-345.22461701,0.00037572,2]
[421917537,1778332271000,-863.36739388,0.00037572,2]
[421917533,1778332271000,-607.52438699,0.00037572,2]
[421917540,1778332271000,-483.49622977,0.00037572,2]
[421917543,1778332271000,-301.16007378,0.00037572,2]
[421917544,1778332271000,-394.99627898,0.00037572,2]
[421917541,1778332271000,-300.0,0.00037572,2]
[421917542,1778332271000,-1093.33377153,0.00037572,2]
[421917546,1778332271000,-603.71874495,0.00037572,2]
[421917547,1778332271000,-1065.80891605,0.00037572,2]
[421917552,1778332271000,-301.04648988,0.00037572,2]
[421917550,1778332271000,-300.0,0.00037572,2]
[421917549,1778332271000,-300.64416106,0.00037572,2]
[421917553,1778332271000,-343.56112299,0.00037572,2]
[421917545,1778332271000,-524.00350514,0.00037572,2]
[421917551,1778332271000,-302.10826924,0.00037572,2]
[421917555,1778332271000,-576.5741924,0.00037572,2]
[421917554,1778332271000,-310.57459591,0.00037572,2]
[421917557,1778332271000,-300.0,0.00037572,2]
[421917556,1778332271000,-451.3512506,0.00037572,2]
[421917558,1778332271000,-483.49622977,0.00037572,2]
[421917559,1778332271000,-300.0,0.00037572,2]
[421917561,1778332271000,-1093.33377153,0.00037572,2]
[421917560,1778332271000,-1116.58679999,0.00037572,2]
[421917497,1778332271000,-402.00454935,0.00037572,2]
[421917532,1778332271000,-301.16007378,0.00037572,2]
[421917534,1778332271000,-1072.08673875,0.00037572,2]
[421917548,1778332271000,-725.162996,0.00037572,2]
[421917530,1778332271000,-343.62395792,0.00037572,2]
[421917536,1778332271000,-1152.82296502,0.00037572,2]
[421917511,1778332271000,-312.41904849,0.00037572,2]
[421917506,1778332271000,-433.03288709,0.00037572,2]
[421917503,1778332271000,-345.06856633,0.00037572,2]
[421917505,1778332271000,-863.54795654,0.00037572,2]
[421917509,1778332271000,-303.60444044,0.00037572,2]
[421917504,1778332271000,-894.76411202,0.00037572,2]
[421917513,1778332271000,-301.39545498,0.00037572,2]
[421917514,1778332271000,-486.31482564,0.00037572,2]
[421917512,1778332271000,-301.13202703,0.00037572,2]
[421917510,1778332271000,-688.8682456,0.00037572,2]
[421917516,1778332271000,-305.66467695,0.00037572,2]
[421917515,1778332271000,-1105.87708411,0.00037572,2]
[421917518,1778332271000,-596.45553294,0.00037572,2]
[421917507,1778332271000,-301.78752227,0.00037572,2]
[421917527,1778332271000,-470.0388109,0.00037572,2]
[421917517,1778332271000,-520.76600389,0.00037572,2]
[421917520,1778332271000,-309.26886467,0.00037572,2]
[421917521,1778332271000,-618.04292496,0.00037572,2]
[421917523,1778332271000,-301.31737877,0.00037572,2]
[421917522,1778332271000,-456.37090337,0.00037572,2]
[421917525,1778332271000,-534.19380384,0.00037572,2]
[421917524,1778332271000,-302.419449,0.00037572,2]
[421917526,1778332271000,-309.26886467,0.00037572,2]
[421917519,1778332271000,-857.9818457,0.00037572,2]
[421917528,1778332271000,-729.97690855,0.00037572,2]
[421917539,1778332271000,-300.0,0.00037572,2]
[421917529,1778332271000,-303.20464535,0.00037572,2]
[421917600,1778332272000,-194.8444135,0.0003761,120]
[421917602,1778332272000,-261.2811879,0.0003761,120]
[421917593,1778332272000,-1093.33377153,0.00037609,2]
[421917601,1778332272000,-269.7488686,0.0003761,120]
[421917599,1778332272000,-150.2050717,0.0003761,120]
[421917598,1778332272000,-527.1999469,0.00037609,2]
[421917604,1778332272000,-197.69395069,0.00037682,2]
[421917596,1778332272000,-603.94708344,0.00037609,2]
[421917597,1778332272000,-300.0,0.00037609,2]
[421917594,1778332272000,-492.17769921,0.00037609,2]
[421917603,1778332272000,-264.7342598,0.0003761,120]
[421917605,1778332272000,-150.0,0.00037694,2]
[421917595,1778332272000,-301.2474204,0.00037609,2]
[421917616,1778332272000,-500.0,0.00037801,23]
[421917611,1778332272000,-500.0,0.00037801,23]
[421917606,1778332272000,-1444.0,0.00037753,120]
[421917610,1778332272000,-1018.0,0.000378,7]
[421917607,1778332272000,-28971.5301114,0.00037777,6]
[421917608,1778332272000,-1000.0,0.000378,7]
[421917614,1778332272000,-500.0,0.00037801,23]
[421917609,1778332272000,-1000.0,0.000378,7]
[421917613,1778332272000,-500.0,0.00037801,23]
[421917615,1778332272000,-500.0,0.00037801,23]
[421917612,1778332272000,-500.0,0.00037801,23]
[421917620,1778332272000,-1470.131,0.00037821,49]
[421917627,1778332272000,-471.1417666,0.00038,2]
[421917628,1778332272000,-10000.0,0.00038,15]
[421917617,1778332272000,-433.4,0.00037801,23]
[421917592,1778332272000,-1116.58679999,0.00037609,2]
[421917565,1778332272000,-1065.80891603,0.00037572,2]
[421917588,1778332272000,-300.0,0.00037609,2]
[421917624,1778332272000,-50000.0,0.00038,37]
[421917562,1778332272000,-301.2474204,0.00037572,2]
[421917563,1778332272000,-603.71874496,0.00037572,2]
[421917564,1778332272000,-300.0,0.00037572,2]
[421917566,1778332272000,-892.47111794,0.00037572,2]
[421917569,1778332272000,-300.64416106,0.00037572,2]
[421917572,1778332272000,-1794.44722741,0.00037572,2]
[421917571,1778332272000,-300.20081794,0.00037572,2]
[421917570,1778332272000,-300.0,0.00037572,2]
[421917577,1778332272000,-400.0,0.0003758,2]
[421917568,1778332272000,-725.162996,0.00037572,2]
[421917567,1778332272000,-401.5179762,0.00037572,2]
[421917574,1778332272000,-343.56112299,0.00037572,2]
[421917587,1778332272000,-300.0,0.00037609,2]
[421917576,1778332272000,-400.0,0.0003758,2]
[421917575,1778332272000,-529.95941832,0.00037572,2]
[421917579,1778332272000,-207.64609061,0.00037593,120]
[421917589,1778332272000,-483.49622977,0.00037609,2]
[421917590,1778332272000,-309.46065506,0.00037609,2]
[421917591,1778332272000,-300.0,0.00037609,2]
[421917578,1778332272000,-708.85469638,0.0003758,2]
[421917581,1778332272000,-6783.41103347,0.000376,30]
[421917582,1778332272000,-250.0,0.00037609,7]
[421917580,1778332272000,-200.58676541,0.000376,5]
[421917584,1778332272000,-310.57459591,0.00037609,2]
[421917583,1778332272000,-1145.98254532,0.00037609,2]
[421917586,1778332272000,-451.3512506,0.00037609,2]
[421917585,1778332272000,-576.5741924,0.00037609,2]
[421917573,1778332272000,-300.00000001,0.00037572,2]
[421917623,1778332272000,-227.6308551,0.00037974,14]
[421917626,1778332272000,-238303.77002301,0.00038,2]
[421917669,1778332272000,-1967.5,0.00038329,120]
[421917662,1778332272000,-2157.0,0.00038329,120]
[421917660,1778332272000,-2308.5,0.00038329,120]
[421917659,1778332272000,-1447.0,0.00038329,120]
[421917656,1778332272000,-1860.5,0.00038329,120]
[421917657,1778332272000,-2421.0,0.00038329,120]
[421917666,1778332272000,-2203.5,0.00038329,120]
[421917661,1778332272000,-2308.5,0.00038329,120]
[421917664,1778332272000,-1762.5,0.00038329,120]
[421917663,1778332272000,-1762.5,0.00038329,120]
[421917678,1778332272000,-2478.0,0.00038329,120]
[421917676,1778332272000,-1755.5,0.00038329,120]
[421917667,1778332272000,-2126.0,0.00038329,120]
[421917674,1778332272000,-1521.5,0.00038329,120]
[421917665,1778332272000,-2203.5,0.00038329,120]
[421917677,1778332272000,-1755.5,0.00038329,120]
[421917675,1778332272000,-1521.5,0.00038329,120]
[421917679,1778332272000,-572.0,0.0003835,14]
[421917668,1778332272000,-1967.5,0.00038329,120]
[421917671,1778332272000,-1848.5,0.00038329,120]
[421917670,1778332272000,-1848.5,0.00038329,120]
[421917672,1778332272000,-1748.0,0.00038329,120]
[421917681,1778332272000,-1090.0791,0.00038351,2]
[421917680,1778332272000,-7302.8739,0.00038351,2]
[421917684,1778332272000,-4030.39081888,0.00038356,30]
[421917682,1778332272000,-150.93,0.00038356,60]
[421917685,1778332272000,-709.62,0.00038356,30]
[421917625,1778332272000,-158.0,0.00038,3]
[421917683,1778332272000,-2085.08,0.00038356,60]
[421917673,1778332272000,-1748.0,0.00038329,120]
[421917649,1778332272000,-2323.0,0.00038329,120]
[421917658,1778332272000,-1447.0,0.00038329,120]
[421917650,1778332272000,-2336.0,0.00038329,120]
[421917621,1778332272000,-150.0,0.00037834,2]
[421917618,1778332272000,-1683.83,0.00037813,90]
[421917619,1778332272000,-572.0,0.00037816,13]
[421917629,1778332272000,-250.0,0.00038,7]
[421917622,1778332272000,-205.43592998,0.0003788,2]
[421917630,1778332272000,-503.59,0.00038,120]
[421917636,1778332272000,-1912.34921797,0.000382,120]
[421917631,1778332272000,-201.49244657,0.00038,2]
[421917640,1778332272000,-2114.0,0.00038329,120]
[421917655,1778332272000,-1860.5,0.00038329,120]
[421917635,1778332272000,-1653.1,0.00038125,30]
[421917641,1778332272000,-2114.0,0.00038329,120]
[421917633,1778332272000,-534.65923754,0.000381,33]
[421917634,1778332272000,-218.18,0.000381,90]
[421917642,1778332272000,-2350.5,0.00038329,120]
[421917639,1778332272000,-2278.5,0.00038329,120]
[421917632,1778332272000,-4146.68,0.00038,30]
[421917652,1778332272000,-2161.0,0.00038329,120]
[421917637,1778332272000,-852.27,0.00038276,60]
[421917651,1778332272000,-2161.0,0.00038329,120]
[421917647,1778332272000,-2359.0,0.00038329,120]
[421917654,1778332272000,-2299.5,0.00038329,120]
[421917643,1778332272000,-2350.5,0.00038329,120]
[421917644,1778332272000,-1844.0,0.00038329,120]
[421917653,1778332272000,-2299.5,0.00038329,120]
[421917646,1778332272000,-2359.0,0.00038329,120]
[421917648,1778332272000,-2323.0,0.00038329,120]
[421917638,1778332272000,-2278.5,0.00038329,120]
[421917645,1778332272000,-1844.0,0.00038329,120]
[421917722,1778332273000,-418.75063302,0.000389,2]
[421917728,1778332273000,-44783.87814486,0.00038931,10]
[421917729,1778332273000,-50000.0,0.00039,39]
[421917719,1778332273000,-572.0,0.00038884,14]
[421917718,1778332273000,-1780.74986623,0.0003888,60]
[421917723,1778332273000,-200.0,0.000389,14]
[421917720,1778332273000,-7302.8739,0.00038899,2]
[421917725,1778332273000,-13706418.54,0.0003893,30]
[421917726,1778332273000,-30000.0,0.00038931,2]
[421917721,1778332273000,-2000.0,0.000389,7]
[421917740,1778332273000,-3000.0,0.00039,30]
[421917727,1778332273000,-5877.48939479,0.00038931,70]
[421917739,1778332273000,-3000.0,0.00039,30]
[421917742,1778332273000,-445.0,0.00039,2]
[421917733,1778332273000,-250.0,0.00039,7]
[421917731,1778332273000,-170.0,0.00039,2]
[421917734,1778332273000,-250.0,0.00039,7]
[421917735,1778332273000,-232.84664,0.00039,120]
[421917738,1778332273000,-3000.0,0.00039,30]
[421917732,1778332273000,-197.01,0.00039,5]
[421917736,1778332273000,-384.0,0.00039,2]
[421917737,1778332273000,-160.0,0.00039,120]
[421917741,1778332273000,-1520.0,0.00039,30]
[421917743,1778332273000,-384.0,0.00039,2]
[421917745,1778332273000,-164.84,0.00039018,60]
[421917744,1778332273000,-8737.55332425,0.00039,120]
[421917753,1778332273000,-928.6,0.00039134,2]
[421917716,1778332273000,-14204.60313054,0.00038831,2]
[421917730,1778332273000,-31263.81077728,0.00039,2]
[421917724,1778332273000,-150.0,0.00038904,60]
[421917688,1778332273000,-150.0,0.00038356,5]
[421917711,1778332273000,-7302.8739,0.00038762,2]
[421917687,1778332273000,-5018.79,0.00038356,120]
[421917690,1778332273000,-350.0,0.00038362,5]
[421917689,1778332273000,-250.0,0.00038359,5]
[421917686,1778332273000,-1093.74,0.00038356,30]
[421917691,1778332273000,-450.0,0.00038364,5]
[421917694,1778332273000,-698.95886867,0.00038373,5]
[421917693,1778332273000,-650.0,0.0003837,5]
[421917698,1778332273000,-7302.8739,0.00038488,2]
[421917699,1778332273000,-51196.1626004,0.000385,2]
[421917692,1778332273000,-550.0,0.00038367,5]
[421917697,1778332273000,-642.09,0.00038476,90]
[421917695,1778332273000,-160.0,0.000384,57]
[421917703,1778332273000,-1818.0,0.0003863,30]
[421917717,1778332273000,-8698.64548078,0.00038831,2]
[421917700,1778332273000,-260.0,0.000385,120]
[421917696,1778332273000,-308.12,0.0003847,2]
[421917704,1778332273000,-1818.0,0.0003863,60]
[421917702,1778332273000,-7302.8739,0.00038625,2]